bitfinex-derivatives/quotes_SOLF0:USTF0_20250227
["timestamp","ask_amount","ask_price","bid_price","bid_amount"]
[1740663874270,3.9811,140.53,140.43,11.7]
[1740663874967,7.123,140.5,140.45,7.1252]
[1740663875166,0.05290608,140.49,140.47,0.04582294]
[1740663876270,7.124,140.48,140.47,0.04582294]
[1740663876565,0.05290608,140.49,140.39,11.68]
[1740663876766,7.1249,140.47,140.4,7.1275]
[1740663877270,3.9811,140.53,140.39,11.68]
[1740663877768,7.1253,140.46,140.45,0.02064277]
[1740663878169,3.9811,140.53,140.45,0.02064277]
[1740663878665,0.05165713,140.5,140.45,0.02064277]
[1740663878865,7.1248,140.47,140.45,0.02064277]
[1740663879267,7.125,140.46,140.45,0.02064277]
[1740663879973,7.126,140.44,140.39,7.1284]
[1740663880469,3.713,140.52,140.37,11.66]
[1740663881170,0.04740173,140.46,140.37,11.66]
[1740663881371,7.1258,140.45,140.37,11.66]
[1740663881574,0.04907265,140.43,140.37,11.66]
[1740663881868,0.04907265,140.43,140.32,0.099]
[1740663882069,21.3,140.5,140.33,1.30983481]
[1740663882264,0.04934341,140.39,140.32,11.759]
[1740663882464,7.17834341,140.39,140.33,7.1313]
[1740663882766,32.96,140.48,140.31,11.66]
[1740663882767,0.05390864,140.37,140.31,11.66]
[1740663883161,0.05390864,140.37,140.35,7.1302]
[1740663885073,7.1258,140.45,140.35,21.38]
[1740663885372,7.1258,140.45,140.31,32.98]
[1740663885568,7.1258,140.45,140.37,7.1292]
[1740663885765,7.1252,140.46,140.38,11.66]
[1740663886071,0.05010221,140.43,140.41,0.05386237]
[1740663886862,0.05010221,140.43,140.42,7.127]
[1740663887062,0.05010221,140.43,140.41,0.05386237]
[1740663889671,0.05010221,140.43,140.41,7.18096237]
[1740663889973,0.05010221,140.43,140.41,0.05386237]
[1740663890570,0.05010221,140.43,140.41,7.18096237]
[1740663891179,0.05010221,140.43,140.42,7.127]
[1740663893272,3.713,140.52,140.42,21.36]
[1740663893472,3.7008,140.54,140.38,32.98]
[1740663893778,7.1195,140.57,140.4,21.32]
[1740663894077,3.7008,140.59,140.41,1.3090751]
[1740663894277,7.1217,140.53,140.41,1.3090751]
[1740663894473,0.04611836,140.51,140.49,0.054469]
[1740663894672,0.04611836,140.51,140.45,11.68]
[1740663894877,7.1212,140.54,140.45,11.68]
[1740663895081,7.1212,140.54,140.49,0.04644946]
[1740663895278,7.1214,140.53,140.49,0.04644946]
[1740663895479,0.05403858,140.53,140.49,0.04644946]
[1740663895681,0.05403858,140.53,140.45,18.8053]
[1740663895885,7.1219,140.52,140.5,0.0529503]
[1740663896177,15.1331,140.52,140.5,0.0529503]
[1740663896577,7.1224,140.51,140.5,0.0529503]
[1740663897073,8.0112,140.52,140.5,0.0529503]
[1740663897277,3.9846,140.52,140.5,0.0529503]
[1740663897877,0.05403858,140.53,140.5,0.0529503]
[1740663898075,0.05403858,140.53,140.52,7.1219]
[1740663898281,0.05403858,140.53,140.52,18.8019]
[1740663898471,0.05403858,140.53,140.52,11.68]
[1740663899178,4.0266,140.59,140.52,11.68]
[1740663899382,7.1172,140.62,140.52,11.68]
[1740663899678,11.9603,140.64,140.55,7.1201]
[1740663899882,11.9603,140.64,140.52,11.68]
[1740663900485,0.05421073,140.59,140.57,0.04652729]
[1740663900678,0.05421073,140.59,140.52,11.68]
[1740663900882,7.1182,140.6,140.52,11.68]
[1740663901086,11.9603,140.64,140.52,11.68]
[1740663901384,7.118,140.6,140.52,11.68]
[1740663901780,0.04563173,140.57,140.55,0.05120765]
[1740663902082,7.1182,140.6,140.54,7.1207]
[1740663902283,0.05375639,140.57,140.55,0.0489448]
[1740663902483,0.05375639,140.57,140.56,7.1199]
[1740663902687,11.9603,140.64,140.52,11.68]
[1740663902885,0.05246843,140.58,140.55,0.04501302]
[1740663903194,7.1203,140.56,140.5,11.68]
[1740663903485,0.05080232,140.58,140.55,0.04666069]
[1740663903687,33.2603,140.64,140.5,11.68]
[1740663903979,0.051157,140.58,140.55,0.04763847]
[1740663904391,0.05403298,140.58,140.55,21.39457647]
[1740663904588,0.05403298,140.58,140.57,7.1194]
[1740663904886,0.05403298,140.58,140.57,11.68]
[1740663905480,0.05403298,140.58,140.57,33.02]
[1740663905686,0.05403298,140.58,140.57,18.7994]
[1740663906579,0.05403298,140.58,140.55,7.17477647]
[1740663906783,0.05403298,140.58,140.57,11.68]
[1740663906984,0.05403298,140.58,140.56,11.68]
[1740663907185,0.05403298,140.58,140.55,0.05457647]
[1740663907685,7.1199,140.56,140.55,0.05457647]
[1740663908084,7.1213,140.54,140.43,38.99510964]
[1740663908290,3.888,140.57,140.44,12.98870672]
[1740663908485,3.858,140.56,140.47,7.1241]
[1740663908686,7.1212,140.54,140.47,7.1241]
[1740663908880,7.1212,140.54,140.39,215.99045548]
[1740663908881,3.858,140.56,140.39,8.13405548]
[1740663909082,3.858,140.56,140.4,12.98906062]
[1740663909283,0.04804292,140.49,140.46,0.04589388]
[1740663909683,0.04898837,140.49,140.42,11.72]
[1740663909989,0.04898837,140.49,140.46,0.05234936]
[1740663911190,0.04898837,140.49,140.46,7.17714936]
[1740663911489,0.04898837,140.49,140.46,0.05234936]
[1740663912287,0.04898837,140.49,140.46,1.36109616]
[1740663912489,0.04898837,140.49,140.46,21.41234936]
[1740663912692,7.7686,140.62,140.47,1.3087468]
[1740663912893,7.1174,140.61,140.51,7.1221]
[1740663913195,7.7686,140.62,140.52,11.74]
[1740663913495,7.1187,140.59,140.52,11.74]
[1740663913683,0.04883006,140.57,140.54,0.05024631]
[1740663914490,7.16843006,140.57,140.54,0.05024631]
[1740663914691,0.04883006,140.57,140.49,11.72]
[1740663915993,0.04883006,140.57,140.52,0.05046211]
[1740663917690,7.115,140.66,140.52,0.05046211]
[1740663917897,12.0409,140.7,140.52,22.62803988]
[1740663918093,12.0409,140.7,140.53,1.30803988]
[1740663918493,12.0409,140.7,140.54,21.32]
[1740663918697,8.0252,140.7,140.55,1.30803988]
[1740663918892,0.05209933,140.63,140.61,0.04959238]
[1740663919298,7.17059749,140.63,140.61,0.04811961]
[1740663919603,0.05379749,140.63,140.61,0.04811961]
[1740663923506,7.17059749,140.63,140.61,0.04811961]
[1740663923902,0.05379749,140.63,140.58,11.72]
[1740663924304,7.1171,140.62,140.58,11.72]
[1740663924806,0.05379749,140.63,140.58,11.72]
[1740663925201,0.05379749,140.63,140.59,0.04942757]
[1740663927698,0.05379749,140.63,140.59,7.16772757]
[1740663928206,0.05379749,140.63,140.59,0.04942757]
[1740663928606,78.71407065,140.78,140.6,21.32]
[1740663928810,7.1119,140.72,140.64,7.1158]
[1740663929109,3.7705,140.73,140.65,11.74]
[1740663929312,10.8821,140.73,140.65,11.74]
[1740663929808,0.04581778,140.7,140.68,0.05070395]
[1740663935012,0.04581778,140.7,140.69,7.1133]
[1740663935411,3.7465,140.76,140.69,21.32]
[1740663935608,3.7465,140.76,140.67,11.72]
[1740663935811,3.7465,140.76,140.68,1.30669837]
[1740663936013,3.7465,140.76,140.72,7.1117]
[1740663936505,3.7465,140.76,140.67,33.04]
[1740663936710,0.04630202,140.75,140.73,7.16344871]
[1740663936916,0.04630202,140.75,140.74,11.72]
[1740663939107,7.681,140.84,140.74,33.04]
[1740663939312,3.9718,140.84,140.74,13.02606585]
[1740663939511,3.9718,140.84,140.8,7.1078]
[1740663939712,3.9718,140.84,140.81,11.7]
[1740663940017,3.9718,140.84,140.7,21.32]
[1740663940216,4.02076754,140.84,140.81,0.05188462]
[1740663940415,78.71407065,140.86,140.8,11.7]
[1740663940714,0.04966632,140.84,140.81,0.04904565]
[1740663941418,0.04966632,140.84,140.69,214.7]
[1740663941621,32.7742,140.88,140.7,11.8027]
[1740663941821,11.4042,140.88,140.7,34.42892164]
[1740663942019,11.4042,140.88,140.72,21.32]
[1740663942317,11.4042,140.88,140.73,1.30622164]
[1740663942519,0.04667793,140.81,140.79,0.04487522]
[1740663942717,0.04667793,140.81,140.79,11.74487522]
[1740663942914,0.05294066,140.81,140.79,11.74493486]
[1740663943922,0.05294066,140.81,140.73,11.7]
[1740663944219,32.7742,140.88,140.73,11.7]
[1740663944517,7.1065,140.83,140.77,7.1091]
[1740663944721,11.4042,140.88,140.77,7.1091]
[1740663944920,11.4042,140.88,140.73,11.7]
[1740663945117,0.0459162,140.84,140.74,1.30620854]
[1740663945421,21.37,140.87,140.79,0.04668895]
[1740663945717,21.37,140.87,140.74,1.30620854]
[1740663945921,0.05461165,140.84,140.82,9.59e-05]
[1740663946221,0.05461165,140.84,140.74,1.30641102]
[1740663946421,11.4042,140.88,140.74,1.30641102]
[1740663946819,11.4042,140.88,140.78,7.1084]
[1740663947017,0.05007614,140.84,140.82,0.05161227]
[1740663947219,0.05007614,140.84,140.82,7.1067]
[1740663947422,0.05007614,140.84,140.82,0.05163635]
[1740663950422,0.05007614,140.84,140.82,7.15833635]
[1740663951721,0.05007614,140.84,140.82,0.05163635]
[1740663953029,0.05007614,140.84,140.82,7.15813635]
[1740663953521,0.05007614,140.84,140.83,7.1062]
[1740663955019,299.69536868,141.01,140.85,7.105]
[1740663955223,7.5307,140.95,140.85,18.785]
[1740663955928,7.5307,140.95,140.86,7.1046]
[1740663956119,0.05272774,140.91,140.89,0.04648861]
[1740663957118,4.0836,140.96,140.89,0.04648861]
[1740663957820,7.1004,140.95,140.89,0.04648861]
[1740663958425,0.05371392,140.93,140.89,0.04648861]
[1740663959423,0.05371392,140.93,140.9,7.1024]
[1740663959622,0.05371392,140.93,140.89,0.04648861]
[1740663960024,0.05371392,140.93,140.89,7.14938861]
[1740663960227,0.05371392,140.93,140.89,0.04648861]
[1740663960615,3.7361,140.99,140.89,0.04648861]
[1740663960818,92.89867065,141.11,140.9,1.30482498]
[1740663960819,11.3869,141.08,140.9,1.30482498]
[1740663961026,11.3869,141.08,140.92,7.1017]
[1740663961327,7.0977,141.0,140.93,12.98482498]
[1740663961525,7.0977,141.0,140.93,11.68]
[1740663961721,0.04659944,140.98,140.95,0.04669991]
[1740663962025,7.6279,140.99,140.93,11.68]
[1740663962226,0.0523075,140.98,140.95,0.04483948]
[1740663962719,0.0523075,140.98,140.95,7.14493948]
[1740663963622,7.6279,141.07,140.95,0.04483948]
[1740663963829,7.6279,141.07,140.96,26.64137954]
[1740663964022,3.7303,141.07,140.97,1.30427954]
[1740663964228,3.7303,141.07,141.01,7.0972]
[1740663964426,3.7303,141.07,140.96,25.3371]
[1740663964625,3.7303,141.07,140.97,12.98394003]
[1740663964824,0.0541689,141.03,141.0,0.05309946]
[1740663965028,7.1505689,141.03,141.0,0.05309946]
[1740663965221,0.0541689,141.03,141.0,0.05309946]
[1740663966625,3.889,141.16,141.0,0.05309946]
[1740663966829,11.7355,141.16,140.99,1.30388294]
[1740663967128,11.7355,141.16,141.0,1.30388294]
[1740663967326,11.7355,141.16,141.01,5.29158294]
[1740663967628,0.04581423,141.1,141.07,0.0467031]
[1740663967830,11.7355,141.16,141.07,11.68]
[1740663968030,0.05428607,141.1,141.07,11.72594068]
[1740663968225,11.7355,141.16,141.07,11.68]
[1740663968433,0.04761416,141.1,141.07,11.73066321]
[1740663968621,11.7355,141.16,141.08,7.0936]
[1740663968929,11.7355,141.16,141.07,11.73244714]
[1740663969131,0.05363397,141.13,141.08,1.30337124]
[1740663969430,0.05363397,141.13,141.1,0.0450337]
[1740663969625,0.05363397,141.13,141.07,5.5368]
[1740663969829,0.05363397,141.13,141.01,1.41833912]
[1740663970025,33.1055,141.16,141.01,1.41833912]
[1740663970227,7.0967,141.02,141.01,1.41833912]
[1740663970426,214.35,141.12,140.94,11.72]
[1740663970625,214.35,141.12,140.95,1.30440402]
[1740663970930,0.04555205,141.04,141.02,0.05421093]
[1740663971125,0.04555205,141.04,140.96,1.30440402]
[1740663971324,7.0954,141.05,140.98,7.0987]
[1740663971624,21.28,141.05,140.89,11.74]
[1740663971826,7.0997,140.96,140.9,1.30476375]
[1740663972025,33.11,141.08,140.9,1.30476375]
[1740663972331,0.04853602,140.94,140.92,0.05297222]
[1740663972531,0.04853602,140.94,140.85,11.74]
[1740663972834,33.11,141.08,140.86,1.30476375]
[1740663973131,33.11,141.08,140.87,1.30509458]
[1740663973333,33.11,141.08,140.74,31.83020889]
[1740663973534,1.07708627,141.07,140.76,13.08557408]
[1740663973833,0.04952998,140.93,140.9,0.04507898]
[1740663974137,204.76,140.96,140.76,11.78]
[1740663974334,192.98,140.96,140.77,1.30569385]
[1740663974534,192.98,140.96,140.78,1.30569385]
[1740663974730,3.8147,140.95,140.79,1.30569385]
[1740663975029,7.795,140.95,140.8,1.30569385]
[1740663975237,0.05310981,140.88,140.86,0.04592725]
[1740663975533,7.795,140.95,140.87,18.9442]
[1740663975741,77.84302216,141.1,140.88,1.30569385]
[1740663976034,3.8147,141.03,140.89,1.30569385]
[1740663976236,3.8147,141.03,140.9,11.88]
[1740663976530,3.8147,141.03,140.91,1.30449033]
[1740663976938,0.04950115,140.98,140.95,0.05203861]
[1740663977231,3.9934,141.09,140.93,1.30449033]
[1740663977232,3.9062,141.08,140.93,1.30449033]
[1740663977428,1.41773587,141.07,140.94,194.32449033]
[1740663977633,1.41773587,141.07,140.95,4.19909033]
[1740663977829,1.41773587,141.07,140.96,1.30449033]
[1740663978034,77.84302216,141.15,140.97,13.22449033]
[1740663978235,77.84302216,141.15,140.98,1.30449033]
[1740663978436,77.84302216,141.15,141.0,0.05053625]
[1740663978637,77.84302216,141.15,141.01,1.30449033]
[1740663978938,77.84302216,141.15,141.02,1.30449033]
[1740663979138,77.84302216,141.15,141.03,4.19909033]
[1740663979335,77.84302216,141.15,141.04,13.24449033]
[1740663979640,0.0459981,141.1,141.08,0.05123008]
[1740663979934,77.84302216,141.15,141.08,0.05123008]
[1740663980140,0.05426838,141.1,141.06,11.94]
[1740663980438,77.84302216,141.15,140.95,2.8946]
[1740663980640,77.84302216,141.15,140.96,13.26346098]
[1740663980840,7.0941,141.08,140.97,1.30346098]
[1740663981141,7.8107,141.07,140.97,1.30346098]
[1740663981337,7.8107,141.07,141.01,0.05037227]
[1740663981539,0.0488657,141.04,140.98,11.96]
[1740663982044,0.0488657,141.04,140.9,38.39377656]
[1740663982344,222.1407,141.07,140.91,1.30456304]
[1740663982540,222.1407,141.07,140.9,50.37377656]
[1740663982847,0.04497343,141.0,140.98,0.05369367]
[1740663983044,0.04497343,141.0,140.88,116.56071366]
[1740663983233,21.28,141.0,140.89,59.05155314]
[1740663983436,42.65,141.0,140.89,46.43445314]
[1740663983644,1.08776182,140.99,140.88,116.56071366]
[1740663983839,42.65,141.0,140.88,116.56071366]
[1740663983840,21.37,141.0,140.88,116.56071366]
[1740663984041,21.37,141.0,140.76,12.0]
[1740663984042,1.08779986,140.99,140.77,38.39979836]
[1740663984234,0.04920266,140.95,140.78,1.30590705]
[1740663984438,193.04,140.94,140.78,1.30590705]
[1740663984638,193.04,140.94,140.77,38.39979836]
[1740663984944,214.41,140.94,140.77,38.39979836]
[1740663985145,7.1033,140.89,140.77,38.39979836]
[1740663985334,12.06,140.89,140.77,38.39979836]
[1740663985535,0.04846694,140.84,140.82,0.05322923]
[1740663985945,21.3,140.84,140.77,38.39979836]
[1740663986440,7.1083,140.79,140.77,38.39979836]
[1740663986641,193.04,140.8,140.63,12.08]
[1740663986835,193.04,140.8,140.68,0.05322923]
[1740663987042,0.04498486,140.73,140.65,0.05322923]
[1740663987240,0.04498486,140.73,140.58,12.1]
[1740663987445,0.04498486,140.73,140.61,0.05322923]
[1740663987641,1.08960587,140.79,140.61,0.05322923]
[1740663987841,0.05393925,140.68,140.58,1.30757487]
[1740663988044,12.12,140.71,140.57,0.05322923]
[1740663988245,205.28,140.7,140.48,39.66651486]
[1740663988445,0.04658882,140.64,140.52,0.05322923]
[1740663988642,193.14,140.69,140.51,0.05322923]
[1740663988838,0.04748474,140.59,140.5,0.05322923]
[1740663989145,12.14,140.62,140.41,12.14]
[1740663989443,0.04867608,140.56,140.45,0.05322923]
[1740663989649,0.04867608,140.56,140.46,0.05322923]
[1740663989846,193.14,140.57,140.41,1.30936577]
[1740663990041,0.05092653,140.52,140.46,0.05322923]
[1740663990340,0.05092653,140.52,140.41,0.05322923]
[1740663990539,0.05092653,140.52,140.36,1.30947988]
[1740663990737,12.14,140.55,140.4,0.05322923]
[1740663990944,0.05207567,140.45,140.41,0.05322923]
[1740663991145,0.05207567,140.45,140.43,0.05322923]
[1740663991340,193.14,140.57,140.43,0.05322923]
[1740663991545,193.14,140.57,140.48,0.05322923]
[1740663991850,0.04931162,140.51,140.48,0.05322923]
[1740663992043,0.04931162,140.51,140.44,1.30961826]
[1740663992249,193.14,140.57,140.45,1.30961826]
[1740663992444,77.84302216,140.65,140.54,0.05322923]
[1740663992648,77.84302216,140.65,140.51,13.48961826]
[1740663992852,77.84302216,140.65,140.52,1.30961826]
[1740663993151,77.84302216,140.65,140.56,0.05322923]
[1740663993349,193.32,140.66,140.53,35.75141486]
[1740663993541,193.32,140.66,140.44,11.3071]
[1740663993542,193.32,140.66,140.47,12.2]
[1740663993944,0.05040994,140.61,140.58,2.05e-05]
[1740663994142,12.2,140.6,140.46,0.05322923]
[1740663994546,12.2,140.6,140.45,2.61833136]
[1740663994744,12.2,140.6,140.46,1.30912267]
[1740663994950,12.2,140.6,140.47,0.05322923]
[1740663995352,0.04953423,140.55,140.45,1.30920869]
[1740663995649,193.4,140.54,140.45,1.30920869]
[1740663996045,214.76,140.54,140.45,1.28880869]
[1740663996354,0.04653368,140.51,140.45,1.28880869]
[1740663997243,0.04653368,140.51,140.46,0.05322923]
[1740663997652,0.04653368,140.51,140.49,0.05322923]
[1740663997848,0.04653368,140.51,140.5,0.05322923]
[1740663998551,0.04653368,140.51,140.48,1.30916309]
[1740663998746,0.04653368,140.51,140.48,12.28]
[1740663998943,0.04653368,140.51,140.5,0.05322923]
[1740663999144,0.04653368,140.51,140.49,0.05322923]
[1740663999552,0.04653368,140.51,140.46,7.1249]
[1740663999753,0.04653368,140.51,140.48,0.05322923]
[1740664000156,0.04653368,140.51,140.45,20.73420869]
[1740664000455,0.04653368,140.51,140.45,13.60880869]
[1740664000852,0.04653368,140.51,140.45,1.28880869]
[1740664001152,0.04653368,140.51,140.47,0.05322923]
[1740664001357,0.04653368,140.51,140.45,1.28880869]
[1740664001750,7.1232,140.5,140.45,1.28880869]
[1740664001949,0.04653368,140.51,140.45,1.28880869]
[1740664003251,193.62,140.5,140.45,1.28880869]
[1740664003451,7.125,140.46,140.45,1.28880869]
[1740664003847,28.485,140.46,140.45,1.28880869]
[1740664004352,28.485,140.46,140.45,8.69e-06]
[1740664004551,7.17042851,140.47,140.45,8.69e-06]
[1740664004753,0.04582851,140.47,140.45,8.69e-06]
[1740664005752,0.04582851,140.47,140.45,0.05323792]
[1740664005955,0.04582851,140.47,140.37,1.30984275]
[1740664006152,0.04582851,140.47,140.46,0.05322923]
[1740664006452,0.04820048,140.48,140.46,0.05322923]
[1740664006654,0.04820048,140.48,140.41,19.4871]
[1740664006957,0.04820048,140.48,140.45,0.05322923]
[1740664007256,0.04820048,140.48,140.47,0.05322923]
[1740664007459,193.68,140.58,140.44,1.30769979]
[1740664007655,193.68,140.58,140.45,7.1253]
[1740664007858,193.68,140.58,140.43,43.44841486]
[1740664008253,215.05,140.58,140.43,43.44841486]
[1740664008455,193.68,140.58,140.43,7.697]
[1740664008657,7.1251,140.46,140.44,1.30917377]
[1740664008852,0.05321364,140.52,140.37,12.38]
[1740664009154,21.37,140.53,140.35,12.4]
[1740664009454,21.37,140.51,140.36,1.30988666]
[1740664009655,7.1276,140.41,140.35,1.30988666]
[1740664009856,21.37,140.51,140.36,1.30999345]
[1740664009857,12.4,140.49,140.36,1.30999345]
[1740664010058,21.37,140.48,140.35,1.30999345]
[1740664010361,0.05409783,140.44,140.34,35.75141486]
[1740664010557,21.37,140.42,140.21,12.44]
[1740664010752,12.44,140.41,140.22,5.07108119]
[1740664010954,33.81,140.41,140.23,1.31098119]
[1740664011161,0.05200099,140.33,140.24,1.31098119]
[1740664011355,0.05200099,140.33,140.25,1.31098119]
[1740664011561,33.81,140.41,140.22,35.75141486]
[1740664011862,0.05450876,140.3,140.23,1.3111369]
[1740664012254,33.81,140.41,140.24,1.3111369]
[1740664012458,0.05351863,140.28,140.25,1.3111369]
[1740664012654,0.05351863,140.28,140.22,1.3111369]
[1740664012854,33.81,140.41,140.26,1.3111369]
[1740664013060,33.81,140.41,140.26,35.75141486]
[1740664013559,0.04988248,140.35,140.21,16.2202]
[1740664013762,0.04988248,140.35,140.22,1.31105219]
[1740664013950,7.1356,140.26,140.22,1.31105219]
[1740664014153,215.13,140.31,140.22,1.31105219]
[1740664014354,0.05174581,140.3,140.22,5.219e-05]
[1740664014757,7.1367,140.23,140.22,5.219e-05]
[1740664015160,21.4,140.23,140.13,1.3122437]
[1740664015355,21.37,140.29,140.13,1.3122437]
[1740664015559,0.04511754,140.24,140.13,1.3122437]
[1740664015757,7.1409,140.15,140.13,1.3122437]
[1740664016259,21.37,140.3,140.13,1.3122437]
[1740664016455,0.04699188,140.15,140.13,1.3122437]
[1740664016655,21.37,140.3,140.13,1.3122437]
[1740664016861,7.1409,140.15,140.07,19.6247]
[1740664017063,7.19081304,140.15,140.08,1.31236333]
[1740664017265,0.04991304,140.15,140.08,1.31236333]
[1740664017464,0.04991304,140.15,140.08,37.06377819]
[1740664017665,0.04991304,140.15,140.08,1.31236333]
[1740664017964,0.04991304,140.15,140.08,37.06377819]
[1740664018358,0.04991304,140.15,140.08,1.31236333]
[1740664018560,193.76,140.31,140.08,1.31236333]
[1740664018869,193.76,140.31,140.1,0.05197997]
[1740664019077,193.76,140.31,140.08,1.31236333]
[1740664019365,193.76,140.31,140.08,37.06377819]
[1740664019769,0.05392433,140.21,140.18,0.05457358]
[1740664020265,193.98,140.31,140.15,7.859]
[1740664020472,0.05322869,140.21,140.18,0.04525685]
[1740664020971,193.98,140.31,140.15,7.859]
[1740664021162,77.84302216,140.34,140.18,0.04713457]
[1740664021567,77.84302216,140.34,140.18,35.75141486]
[1740664021768,7.1342,140.28,140.21,7.1376]
[1740664021968,7.1342,140.28,140.2,12.52]
[1740664022270,12.56,140.33,140.15,43.61041486]
[1740664022571,0.04512736,140.25,140.23,1.086e-05]
[1740664022963,12.56,140.33,140.15,7.859]
[1740664023161,12.56,140.33,140.15,43.61041486]
[1740664023561,14.2592,140.37,140.15,7.859]
[1740664023767,12.56,140.36,140.15,7.859]
[1740664023973,0.05476285,140.25,140.23,0.05266644]
[1740664024471,7.1371,140.23,140.15,7.859]
[1740664024673,0.04905011,140.25,140.23,2.8e-07]
[1740664025169,77.84302216,140.32,140.15,7.859]
[1740664025566,77.84302216,140.32,140.15,43.61041486]
[1740664025965,7.139,140.19,140.15,43.61041486]
[1740664026171,0.04662408,140.25,140.15,7.859]
[1740664026372,77.84302216,140.32,140.15,7.859]
[1740664026571,12.6,140.31,140.15,43.61041486]
[1740664026765,0.05395474,140.21,140.15,39.57371486]
[1740664026971,194.02,140.26,140.13,3.7182]
[1740664027173,21.37,140.25,140.08,12.6]
[1740664027369,0.05468251,140.19,140.08,48.35141486]
[1740664027674,7.1438,140.09,140.08,35.75141486]
[1740664028381,0.04762218,140.1,140.08,35.75141486]
[1740664028580,0.04762218,140.1,140.03,3.8372]
[1740664028879,0.0801,140.21,140.03,28.63181486]
[1740664029082,0.05102667,140.08,140.03,28.63181486]
[1740664029281,7.1462,140.05,140.03,28.63181486]
[1740664029481,194.1,140.14,140.03,28.63181486]
[1740664029682,194.1,140.14,140.03,3.8372]
[1740664029875,0.04952019,140.05,140.03,3.8372]
[1740664030077,12.6,140.21,140.03,25.2572]
[1740664030272,194.1,140.23,140.03,3.8372]
[1740664030479,194.1,140.23,140.09,7.1437]
[1740664030777,1.42633005,140.22,140.1,12.62]
[1740664030985,1.42633005,140.22,140.11,3.8439]
[1740664031484,77.84302216,140.24,140.15,0.05447498]
[1740664031880,77.84302216,140.24,140.12,4.1025]
[1740664032077,123.38366021,140.25,140.13,7.1414]
[1740664032281,77.84302216,140.28,140.12,4.1025]
[1740664032479,99.21302216,140.28,140.12,28.89711486]
[1740664032678,0.05032461,140.21,140.19,1.135e-05]
[1740664033187,42.77,140.21,140.05,3.8439]
[1740664033390,21.37,140.21,140.05,3.8439]
[1740664033687,7.1429,140.11,140.05,28.63851486]
[1740664034284,215.49,140.19,140.07,0.04691399]
[1740664034485,1.42673705,140.18,140.07,0.04691399]
[1740664034786,7.1444,140.08,140.0,3.8798]
[1740664034988,21.37,140.16,140.11,4.391e-05]
[1740664035284,0.05313637,140.14,140.0,3.8798]
[1740664035486,0.05313637,140.14,140.0,28.67441486]
[1740664035682,1.42724612,140.13,140.0,28.67441486]
[1740664035879,7.1461,140.05,140.0,28.67441486]
[1740664036082,1.42724612,140.13,139.94,12.64]
[1740664036387,7.1453,140.06,140.05,3.926e-05]
[1740664036589,7.1453,140.06,139.95,11.7911]
[1740664036784,0.1358,140.12,139.95,11.7911]
[1740664037086,0.1358,140.12,139.95,32.58181486]
[1740664037482,7.1486,140.0,139.95,32.58181486]
[1740664037683,194.20901396,140.05,139.95,32.58181486]
[1740664037976,194.16,140.05,139.84,4.0039]
[1740664038183,0.05187517,140.01,139.85,7.9964]
[1740664038484,1.42857142,140.0,139.87,7.1548]
[1740664038682,1.42857142,140.0,139.85,7.9964]
[1740664038880,0.04559975,139.94,139.85,24.79461486]
[1740664039085,0.04559975,139.94,139.88,1.3143937]
[1740664039285,12.783,139.99,139.88,1.3143937]
[1740664039485,0.0457597,139.92,139.78,12.64]
[1740664039879,1.42877553,139.98,139.79,1.31464089]
[1740664040083,0.04916119,139.86,139.8,13.97464089]
[1740664040284,1.42877553,139.98,139.81,1.31464089]
[1740664040483,7.152,139.93,139.85,7.1558]
[1740664040682,1.42877553,139.98,139.86,1.31464089]
[1740664040889,1.42877553,139.98,139.87,9.31144089]
[1740664041188,7.1505,139.96,139.88,13.99464089]
[1740664041488,0.04824806,139.94,139.91,0.05052283]
[1740664041683,194.16,140.05,139.91,0.05052283]
[1740664041885,194.16,140.05,139.91,26.15954257]
[1740664042079,194.16,140.05,139.91,24.79461486]
[1740664042284,194.16,140.05,139.92,1.31414621]
[1740664042486,194.16,140.05,139.89,37.53461486]
[1740664042689,1.42816338,140.04,139.9,1.31415159]
[1740664042989,0.05341718,139.98,139.87,7.9968]
[1740664043188,0.05341718,139.98,139.88,1.31448506]
[1740664043189,7.1523,139.93,139.88,1.31448506]
[1740664043393,34.11,140.01,139.87,32.79141486]
[1740664043591,1.42857142,140.0,139.87,28.86911486]